[Event "*** Titled Tuesday Blitz"]
[Site "Chess.com"]
[Date "2020.11.10"]
[Round "7"]
[White "jefferyx"]
[Black "VerdeNotte"]
[Result "1/2-1/2"]
[WhiteElo "2972"]
[BlackElo "2891"]
[TimeControl "180+1"]
[EndTime "11:25:21 PST"]
[Termination "Game drawn by 50-move rule"]

1. e4 {[%clk 0:03:00.9]} 1... c5 {[%clk 0:02:59.9]} 2. Nf3 {[%clk 0:03:01]} 2...
d6 {[%clk 0:03:00.2]} 3. Bb5+ {[%clk 0:03:01.1]} 3... Bd7 {[%clk 0:03:00.3]} 4.
Bxd7+ {[%clk 0:03:00.6]} 4... Qxd7 {[%clk 0:03:01.2]} 5. c4 {[%clk 0:03:00.5]}
5... Nf6 {[%clk 0:03:00.5]} 6. Nc3 {[%clk 0:03:00.9]} 6... g6 {[%clk 0:03:00.9]}
7. O-O {[%clk 0:03:01.2]} 7... Bg7 {[%clk 0:03:01]} 8. d4 {[%clk 0:03:01.9]}
8... cxd4 {[%clk 0:03:01.3]} 9. Nxd4 {[%clk 0:03:02.8]} 9... O-O {[%clk
0:03:01.8]} 10. f3 {[%clk 0:03:00.5]} 10... Nc6 {[%clk 0:03:01.5]} 11. Be3
{[%clk 0:03:00.2]} 11... e6 {[%clk 0:02:57.4]} 12. Rc1 {[%clk 0:02:45.6]} 12...
Rfd8 {[%clk 0:02:56.1]} 13. Rf2 {[%clk 0:02:38.1]} 13... Ne8 {[%clk 0:02:43.4]}
14. Rd2 {[%clk 0:02:36.7]} 14... Nxd4 {[%clk 0:02:42]} 15. Bxd4 {[%clk
0:02:36.8]} 15... Bh6 {[%clk 0:02:40.1]} 16. Rcc2 {[%clk 0:02:28.6]} 16... Bxd2
{[%clk 0:02:39.4]} 17. Qxd2 {[%clk 0:02:29.5]} 17... Rac8 {[%clk 0:02:37]} 18.
b3 {[%clk 0:02:29.1]} 18... b6 {[%clk 0:02:30.4]} 19. Qg5 {[%clk 0:02:27]} 19...
Rc7 {[%clk 0:02:25]} 20. Rd2 {[%clk 0:02:17.9]} 20... Qe7 {[%clk 0:02:21.7]} 21.
Qg3 {[%clk 0:02:18.3]} 21... Rdc8 {[%clk 0:02:15.2]} 22. h4 {[%clk 0:02:16.5]}
22... Nf6 {[%clk 0:02:10.5]} 23. Nb5 {[%clk 0:02:16]} 23... Nh5 {[%clk
0:02:00.1]} 24. Qxd6 {[%clk 0:02:06.2]} 24... Qxd6 {[%clk 0:01:50.1]} 25. Nxd6
{[%clk 0:02:07.1]} 25... Rd8 {[%clk 0:01:49.2]} 26. e5 {[%clk 0:02:07.4]} 26...
Ng7 {[%clk 0:01:47.4]} 27. g4 {[%clk 0:02:07.5]} 27... Ne8 {[%clk 0:01:47.2]}
28. Nxe8 {[%clk 0:01:43.3]} 28... Rxe8 {[%clk 0:01:48.1]} 29. Be3 {[%clk
0:01:43.9]} 29... h5 {[%clk 0:01:37]} 30. Kf2 {[%clk 0:01:33.5]} 30... Rb8
{[%clk 0:01:26.8]} 31. a4 {[%clk 0:01:30.9]} 31... Kf8 {[%clk 0:01:24]} 32. Kg3
{[%clk 0:01:11.4]} 32... Ke8 {[%clk 0:01:20.8]} 33. gxh5 {[%clk 0:01:11.9]}
33... gxh5 {[%clk 0:01:20.8]} 34. Kf4 {[%clk 0:01:12.1]} 34... Ke7 {[%clk
0:01:15.9]} 35. Ke4 {[%clk 0:01:07]} 35... Rd7 {[%clk 0:01:09.2]} 36. Bg5+
{[%clk 0:01:06.8]} 36... Ke8 {[%clk 0:01:09.5]} 37. Rg2 {[%clk 0:01:07.7]} 37...
Rd1 {[%clk 0:01:06.1]} 38. Bf6 {[%clk 0:01:05.7]} 38... Kd7 {[%clk 0:01:02.4]}
39. Rg5 {[%clk 0:01:06.3]} 39... a6 {[%clk 0:00:38.9]} 40. Rxh5 {[%clk
0:01:06.1]} 40... b5 {[%clk 0:00:39.4]} 41. axb5 {[%clk 0:00:59.5]} 41... axb5
{[%clk 0:00:40.3]} 42. Rh7 {[%clk 0:00:59.9]} 42... bxc4 {[%clk 0:00:37.3]} 43.
Rxf7+ {[%clk 0:00:59.8]} 43... Kc6 {[%clk 0:00:36.6]} 44. bxc4 {[%clk
0:00:59.9]} 44... Rb4 {[%clk 0:00:36.4]} 45. Kf4 {[%clk 0:00:58.8]} 45... Rxc4+
{[%clk 0:00:34.5]} 46. Kg5 {[%clk 0:00:59.1]} 46... Rg1+ {[%clk 0:00:34.5]} 47.
Kh5 {[%clk 0:00:59.6]} 47... Rf4 {[%clk 0:00:33]} 48. Re7 {[%clk 0:00:54.9]}
48... Kd5 {[%clk 0:00:32.8]} 49. Rd7+ {[%clk 0:00:55.1]} 49... Kc4 {[%clk
0:00:30.2]} 50. Rd6 {[%clk 0:00:50.4]} 50... Rxf3 {[%clk 0:00:30.2]} 51. Rxe6
{[%clk 0:00:50.1]} 51... Kd5 {[%clk 0:00:30.2]} 52. Rd6+ {[%clk 0:00:49.8]}
52... Ke4 {[%clk 0:00:30.4]} 53. Kh6 {[%clk 0:00:43.3]} 53... Kf5 {[%clk
0:00:20.4]} 54. h5 {[%clk 0:00:43.6]} 54... Rh3 {[%clk 0:00:16.9]} 55. Be7
{[%clk 0:00:33.1]} 55... Rgh1 {[%clk 0:00:08.9]} 56. Kg7 {[%clk 0:00:33.2]}
56... Rxh5 {[%clk 0:00:08.6]} 57. Bf6 {[%clk 0:00:24.3]} 57... Rh8 {[%clk
0:00:08.8]} 58. Kf7 {[%clk 0:00:21.8]} 58... R1h7+ {[%clk 0:00:08.9]} 59. Bg7
{[%clk 0:00:22.3]} 59... Ra8 {[%clk 0:00:07.4]} 60. e6 {[%clk 0:00:20.3]} 60...
Rh1 {[%clk 0:00:02.8]} 61. e7 {[%clk 0:00:20]} 61... Re1 {[%clk 0:00:03]} 62.
Rd5+ {[%clk 0:00:17.1]} 62... Kg4 {[%clk 0:00:02.5]} 63. Bf6 {[%clk 0:00:16.6]}
63... Ra7 {[%clk 0:00:02.7]} 64. Kf8 {[%clk 0:00:15.9]} 64... Ra8+ {[%clk
0:00:01.4]} 65. Rd8 {[%clk 0:00:16.6]} 65... Ra7 {[%clk 0:00:01.3]} 66. e8=Q
{[%clk 0:00:08.5]} 66... Rxe8+ {[%clk 0:00:02.2]} 67. Kxe8 {[%clk 0:00:09.4]}
67... Kf5 {[%clk 0:00:02.7]} 68. Be7 {[%clk 0:00:10.3]} 68... Ke6 {[%clk
0:00:02.6]} 69. Rd6+ {[%clk 0:00:10.9]} 69... Kf5 {[%clk 0:00:03]} 70. Kf7
{[%clk 0:00:11.1]} 70... Ke5 {[%clk 0:00:03.6]} 71. Rb6 {[%clk 0:00:11.2]} 71...
Kf5 {[%clk 0:00:04]} 72. Rb5+ {[%clk 0:00:11.4]} 72... Ke4 {[%clk 0:00:03.6]}
73. Ke6 {[%clk 0:00:12.3]} 73... Kf4 {[%clk 0:00:03]} 74. Bd6+ {[%clk
0:00:11.8]} 74... Kg4 {[%clk 0:00:03.5]} 75. Rb4+ {[%clk 0:00:12.3]} 75... Kg5
{[%clk 0:00:03.7]} 76. Be7+ {[%clk 0:00:12.6]} 76... Kg6 {[%clk 0:00:02.3]} 77.
Rg4+ {[%clk 0:00:12.7]} 77... Kh5 {[%clk 0:00:02.8]} 78. Rg1 {[%clk 0:00:12.7]}
78... Ra6+ {[%clk 0:00:02.3]} 79. Kf7 {[%clk 0:00:12.5]} 79... Ra7 {[%clk
0:00:01.9]} 80. Rg5+ {[%clk 0:00:12.5]} 80... Kh6 {[%clk 0:00:01.9]} 81. Rg4
{[%clk 0:00:13.2]} 81... Ra5 {[%clk 0:00:01.3]} 82. Rg8 {[%clk 0:00:08.8]} 82...
Rf5+ {[%clk 0:00:01.5]} 83. Bf6 {[%clk 0:00:08.6]} 83... Kh5 {[%clk 0:00:01.8]}
84. Ke6 {[%clk 0:00:09.2]} 84... Rf2 {[%clk 0:00:01.8]} 85. Rg1 {[%clk
0:00:09.3]} 85... Rf3 {[%clk 0:00:01.9]} 86. Rg5+ {[%clk 0:00:07.6]} 86... Kh4
{[%clk 0:00:01.7]} 87. Ke5 {[%clk 0:00:05.8]} 87... Kh3 {[%clk 0:00:02.1]} 88.
Rg6 {[%clk 0:00:05.9]} 88... Rg3 {[%clk 0:00:02.6]} 89. Rh6+ {[%clk 0:00:05.9]}
89... Kg2 {[%clk 0:00:03.5]} 90. Ke4 {[%clk 0:00:05.6]} 90... Rh3 {[%clk
0:00:03.8]} 91. Rg6+ {[%clk 0:00:05.6]} 91... Rg3 {[%clk 0:00:04.4]} 92. Bg5
{[%clk 0:00:06.3]} 92... Kf1 {[%clk 0:00:04.8]} 93. Rf6+ {[%clk 0:00:06]} 93...
Ke2 {[%clk 0:00:05.1]} 94. Bf4 {[%clk 0:00:06.3]} 94... Ra3 {[%clk 0:00:05.4]}
95. Be5 {[%clk 0:00:04.2]} 95... Re3+ {[%clk 0:00:05.4]} 96. Kd5 {[%clk
0:00:04.8]} 96... Rf3 {[%clk 0:00:05.8]} 97. Rh6 {[%clk 0:00:04.5]} 97... Rd3+
{[%clk 0:00:05.7]} 98. Bd4 {[%clk 0:00:05]} 98... Rf3 {[%clk 0:00:05.6]} 99.
Rh2+ {[%clk 0:00:05.2]} 99... Kd3 {[%clk 0:00:04.8]} 100. Rh5 {[%clk 0:00:05.8]}
100... Rf8 {[%clk 0:00:04.6]} 101. Rh3+ {[%clk 0:00:05.9]} 101... Ke2 {[%clk
0:00:05.1]} 102. Ke4 {[%clk 0:00:06.8]} 102... Re8+ {[%clk 0:00:05.1]} 103. Be5
{[%clk 0:00:07.4]} 103... Ke1 {[%clk 0:00:05.5]} 104. Rh2 {[%clk 0:00:07.7]}
104... Re7 {[%clk 0:00:05.5]} 105. Kd4 {[%clk 0:00:08.1]} 105... Kf1 {[%clk
0:00:04.9]} 106. Ra2 {[%clk 0:00:08.1]} 106... Ke1 {[%clk 0:00:04.8]} 107. Bf4
{[%clk 0:00:04.6]} 107... Re8 {[%clk 0:00:04.8]} 108. Be3 {[%clk 0:00:05]}
108... Rd8+ {[%clk 0:00:04.7]} 109. Ke4 {[%clk 0:00:05.5]} 109... Re8+ {[%clk
0:00:05.1]} 110. Kf3 {[%clk 0:00:06.1]} 110... Kd1 {[%clk 0:00:03.2]} 111. Rd2+
{[%clk 0:00:06.7]} 111... Ke1 {[%clk 0:00:03.5]} 112. Rc2 {[%clk 0:00:07.3]}
112... Rf8+ {[%clk 0:00:03.6]} 113. Bf4 {[%clk 0:00:07.1]} 113... Rd8 {[%clk
0:00:04.2]} 114. Rc7 {[%clk 0:00:05.9]} 114... Rd5 {[%clk 0:00:02.7]} 115. Re7+
{[%clk 0:00:03.9]} 115... Kd1 {[%clk 0:00:02.5]} 116. Rc7 {[%clk 0:00:04.4]}
116... Ke1 {[%clk 0:00:02.9]} 117. Ke4 {[%clk 0:00:05]} 1/2-1/2

[Event "*** Titled Tuesday Blitz"]
[Site "Chess.com"]
[Date "2020.11.10"]
[Round "8"]
[White "leejunhyeok"]
[Black "NefeLV"]
[Result "1-0"]
[WhiteElo "2596"]
[BlackElo "1755"]
[TimeControl "180+1"]
[EndTime "11:27:49 PST"]
[Termination "leejunhyeok won by resignation"]

1. e4 {[%clk 0:02:59.6]} 1... e6 {[%clk 0:02:43.9]} 2. c4 {[%clk 0:02:59.1]}
2... d5 {[%clk 0:02:35.8]} 3. exd5 {[%clk 0:03:00]} 3... exd5 {[%clk 0:02:36]}
4. cxd5 {[%clk 0:03:00.9]} 4... Qxd5 {[%clk 0:02:34.7]} 5. Nc3 {[%clk
0:03:01.2]} 5... Qa5 {[%clk 0:02:34.5]} 6. d4 {[%clk 0:03:01.5]} 6... Bb4 {[%clk
0:02:32.1]} 7. Bd2 {[%clk 0:02:58.1]} 7... c5 {[%clk 0:02:31.4]} 8. a3 {[%clk
0:02:54.5]} 8... Bxc3 {[%clk 0:02:28.6]} 9. Bxc3 {[%clk 0:02:55.4]} 9... Qb6
{[%clk 0:02:26.6]} 10. dxc5 {[%clk 0:02:54.5]} 10... Qxc5 {[%clk 0:02:26.2]} 11.
Bxg7 {[%clk 0:02:51.9]} 11... Nc6 {[%clk 0:02:09.4]} 12. Bxh8 {[%clk 0:02:50.9]}
1-0

[Event "*** Titled Tuesday Blitz"]
[Site "Chess.com"]
[Date "2020.11.10"]
[Round "8"]
[White "ViditYT"]
[Black "horripile"]
[Result "1-0"]
[WhiteElo "2871"]
[BlackElo "2673"]
[TimeControl "180+1"]
[EndTime "11:28:55 PST"]
[Termination "ViditYT won by resignation"]

1. Nf3 {[%clk 0:03:00.9]} 1... Nf6 {[%clk 0:02:59.6]} 2. g3 {[%clk 0:03:01.8]}
2... b6 {[%clk 0:02:58.4]} 3. Bg2 {[%clk 0:03:02.7]} 3... Bb7 {[%clk 0:02:58.8]}
4. O-O {[%clk 0:03:03.6]} 4... c5 {[%clk 0:02:59.4]} 5. c4 {[%clk 0:03:04.1]}
5... e6 {[%clk 0:02:59.8]} 6. b3 {[%clk 0:03:03.5]} 6... Be7 {[%clk 0:02:59.9]}
7. Bb2 {[%clk 0:03:03.9]} 7... O-O {[%clk 0:03:00.4]} 8. Nc3 {[%clk 0:03:03.8]}
8... a6 {[%clk 0:02:58.9]} 9. e3 {[%clk 0:02:59.5]} 9... d6 {[%clk 0:02:54.2]}
10. d4 {[%clk 0:02:59.7]} 10... cxd4 {[%clk 0:02:52.9]} 11. exd4 {[%clk
0:02:59.5]} 11... d5 {[%clk 0:02:50.6]} 12. Ne5 {[%clk 0:02:59.7]} 12... Ra7
{[%clk 0:02:50.9]} 13. Qe2 {[%clk 0:02:57.6]} 13... dxc4 {[%clk 0:02:47.9]} 14.
Bxb7 {[%clk 0:02:58.5]} 14... Rxb7 {[%clk 0:02:48.1]} 15. bxc4 {[%clk
0:02:58.8]} 15... Nfd7 {[%clk 0:02:22]} 16. Rad1 {[%clk 0:02:56.1]} 16... Nxe5
{[%clk 0:02:21.1]} 17. dxe5 {[%clk 0:02:57]} 17... Rd7 {[%clk 0:02:13.3]} 18.
Ne4 {[%clk 0:02:55.6]} 18... Nc6 {[%clk 0:02:07.7]} 19. Nf6+ {[%clk 0:02:39]}
19... Bxf6 {[%clk 0:01:59.4]} 20. exf6 {[%clk 0:02:39.1]} 20... g6 {[%clk
0:01:58.2]} 21. Rxd7 {[%clk 0:02:25.5]} 21... Qxd7 {[%clk 0:01:59.1]} 22. Qe3
{[%clk 0:02:26]} 22... e5 {[%clk 0:01:55.7]} 23. Qh6 {[%clk 0:02:24.9]} 1-0

[Event "*** Titled Tuesday Blitz"]
[Site "Chess.com"]
[Date "2020.11.10"]
[Round "8"]
[White "parintele_chess"]
[Black "elamier"]
[Result "0-1"]
[WhiteElo "2155"]
[BlackElo "2347"]
[TimeControl "180+1"]
[EndTime "11:28:57 PST"]
[Termination "elamier won by resignation"]

1. c4 {[%clk 0:03:00.8]} 1... Nf6 {[%clk 0:02:59.4]} 2. Nc3 {[%clk 0:03:00.6]}
2... d5 {[%clk 0:02:59.5]} 3. cxd5 {[%clk 0:03:00.6]} 3... Nxd5 {[%clk
0:03:00.4]} 4. e4 {[%clk 0:02:58.9]} 4... Nxc3 {[%clk 0:02:59.2]} 5. bxc3 {[%clk
0:02:59.8]} 5... g6 {[%clk 0:02:58.7]} 6. d4 {[%clk 0:02:59.7]} 6... Bg7 {[%clk
0:02:56.6]} 7. Nf3 {[%clk 0:02:59.3]} 7... c5 {[%clk 0:02:56.2]} 8. Be3 {[%clk
0:02:58.4]} 8... O-O {[%clk 0:02:54.7]} 9. Qd2 {[%clk 0:02:56.5]} 9... Qa5
{[%clk 0:02:53.2]} 10. Be2 {[%clk 0:02:55.4]} 10... Rd8 {[%clk 0:02:52.1]} 11.
O-O {[%clk 0:02:51.7]} 11... Nc6 {[%clk 0:02:50.8]} 12. Rfd1 {[%clk 0:02:36.9]}
12... Bg4 {[%clk 0:02:46.7]} 13. e5 {[%clk 0:02:18.9]} 13... Bxf3 {[%clk
0:02:32.2]} 14. Bxf3 {[%clk 0:02:14.7]} 14... Nxe5 {[%clk 0:02:30.7]} 15. Bxb7
{[%clk 0:02:11.2]} 15... Rab8 {[%clk 0:02:30.1]} 16. Bf3 {[%clk 0:02:06.3]}
16... cxd4 {[%clk 0:02:23.2]} 17. Bxd4 {[%clk 0:01:57.6]} 17... Nxf3+ {[%clk
0:02:22.2]} 18. gxf3 {[%clk 0:01:58.4]} 18... e5 {[%clk 0:02:21.2]} 0-1

[Event "*** Titled Tuesday Blitz"]
[Site "Chess.com"]
[Date "2020.11.10"]
[Round "8"]
[White "Bodnar_Mykola"]
[Black "MatyChess1"]
[Result "0-1"]
[WhiteElo "2372"]
[BlackElo "2557"]
[TimeControl "180+1"]
[EndTime "11:29:11 PST"]
[Termination "MatyChess1 won by resignation"]

1. e4 {[%clk 0:03:00.9]} 1... c5 {[%clk 0:02:57.9]} 2. Nf3 {[%clk 0:03:00.9]}
2... g6 {[%clk 0:02:58.1]} 3. d4 {[%clk 0:02:59.3]} 3... cxd4 {[%clk 0:02:59]}
4. Nxd4 {[%clk 0:03:00.2]} 4... Nc6 {[%clk 0:02:59.2]} 5. c4 {[%clk 0:03:00.5]}
5... Nf6 {[%clk 0:02:59.9]} 6. Nc3 {[%clk 0:03:00.9]} 6... d6 {[%clk 0:03:00.4]}
7. Be2 {[%clk 0:02:59.6]} 7... Nxd4 {[%clk 0:03:00.3]} 8. Qxd4 {[%clk
0:03:00.5]} 8... Bg7 {[%clk 0:03:01.2]} 9. Be3 {[%clk 0:03:00.6]} 9... O-O
{[%clk 0:03:01.6]} 10. Qd2 {[%clk 0:03:00.4]} 10... a5 {[%clk 0:03:02.3]} 11.
O-O {[%clk 0:02:53.7]} 11... a4 {[%clk 0:03:02.8]} 12. Rfd1 {[%clk 0:02:50.1]}
12... Qa5 {[%clk 0:03:01.9]} 13. Rac1 {[%clk 0:02:43.5]} 13... Be6 {[%clk
0:03:01.3]} 14. f3 {[%clk 0:02:36.7]} 14... Rfc8 {[%clk 0:03:01.3]} 15. b3
{[%clk 0:02:22]} 15... axb3 {[%clk 0:03:00.9]} 16. axb3 {[%clk 0:02:22.9]} 16...
Qb4 {[%clk 0:03:00.9]} 17. Na4 {[%clk 0:02:13.7]} 17... Qxb3 {[%clk 0:02:13.3]}
18. Nb6 {[%clk 0:02:13.1]} 18... Ra2 {[%clk 0:02:12.4]} 19. Qe1 {[%clk
0:01:43.9]} 19... Qxe3+ {[%clk 0:02:11]} 0-1

[Event "*** Titled Tuesday Blitz"]
[Site "Chess.com"]
[Date "2020.11.10"]
[Round "8"]
[White "TheKingDoctor"]
[Black "FMalexhdez"]
[Result "0-1"]
[WhiteElo "2106"]
[BlackElo "2263"]
[TimeControl "180+1"]
[EndTime "11:29:22 PST"]
[Termination "FMalexhdez won by resignation"]

1. e4 {[%clk 0:03:00.9]} 1... c5 {[%clk 0:02:59.5]} 2. Nc3 {[%clk 0:03:00.4]}
2... d6 {[%clk 0:03:00.4]} 3. f4 {[%clk 0:03:00.3]} 3... g6 {[%clk 0:02:59.5]}
4. Nf3 {[%clk 0:02:59.8]} 4... Bg7 {[%clk 0:03:00]} 5. Bb5+ {[%clk 0:02:58.5]}
5... Bd7 {[%clk 0:02:58.3]} 6. Bc4 {[%clk 0:02:58.4]} 6... Nc6 {[%clk
0:02:56.3]} 7. O-O {[%clk 0:02:53.2]} 7... e6 {[%clk 0:02:55.4]} 8. a4 {[%clk
0:02:44.2]} 8... Nge7 {[%clk 0:02:55.6]} 9. d3 {[%clk 0:02:38.6]} 9... O-O
{[%clk 0:02:54.9]} 10. Qe1 {[%clk 0:02:33]} 10... Nd4 {[%clk 0:02:53.3]} 11. Qf2
{[%clk 0:02:08.4]} 11... Bc6 {[%clk 0:02:48.6]} 12. Be3 {[%clk 0:02:07.1]} 12...
d5 {[%clk 0:02:46.5]} 13. exd5 {[%clk 0:02:01]} 13... Nxf3+ {[%clk 0:02:39.1]}
0-1

[Event "*** Titled Tuesday Blitz"]
[Site "Chess.com"]
[Date "2020.11.10"]
[Round "8"]
[White "Msb2"]
[Black "sofaceindisguise"]
[Result "1-0"]
[WhiteElo "2894"]
[BlackElo "2686"]
[TimeControl "180+1"]
[EndTime "11:29:23 PST"]
[Termination "Msb2 won by resignation"]

1. d4 {[%clk 0:03:00.9]} 1... Nf6 {[%clk 0:02:59.6]} 2. c4 {[%clk 0:03:01.5]}
2... e6 {[%clk 0:02:59.9]} 3. Nc3 {[%clk 0:03:02.1]} 3... Bb4 {[%clk 0:02:59.6]}
4. e3 {[%clk 0:03:02.6]} 4... O-O {[%clk 0:02:57.4]} 5. Bd2 {[%clk 0:03:02.8]}
5... Re8 {[%clk 0:02:56.7]} 6. Nf3 {[%clk 0:03:01.7]} 6... c5 {[%clk 0:02:55.7]}
7. a3 {[%clk 0:03:01]} 7... Bxc3 {[%clk 0:02:51.3]} 8. Bxc3 {[%clk 0:03:01.9]}
8... cxd4 {[%clk 0:02:49.9]} 9. Qxd4 {[%clk 0:02:59.7]} 9... Nc6 {[%clk
0:02:49.8]} 10. Qh4 {[%clk 0:02:59.9]} 10... d5 {[%clk 0:02:49.1]} 11. Bxf6
{[%clk 0:02:59.9]} 11... Qxf6 {[%clk 0:02:46.1]} 12. Qxf6 {[%clk 0:02:59.8]}
12... gxf6 {[%clk 0:02:47]} 13. cxd5 {[%clk 0:03:00.7]} 13... exd5 {[%clk
0:02:47.9]} 14. Bb5 {[%clk 0:03:01.2]} 14... Bd7 {[%clk 0:02:40.4]} 15. Rc1
{[%clk 0:03:01.4]} 15... a6 {[%clk 0:02:25.8]} 16. Bxc6 {[%clk 0:03:00]} 16...
bxc6 {[%clk 0:02:26.7]} 17. Nd4 {[%clk 0:02:54.1]} 17... Reb8 {[%clk 0:02:23.7]}
18. b3 {[%clk 0:02:54.3]} 18... a5 {[%clk 0:02:21.3]} 19. a4 {[%clk 0:02:54.2]}
19... Rb6 {[%clk 0:02:19.8]} 20. Rc5 {[%clk 0:02:53.9]} 20... Kf8 {[%clk
0:02:19.7]} 21. Kd2 {[%clk 0:02:52.6]} 21... Ke7 {[%clk 0:02:20.6]} 22. Rhc1
{[%clk 0:02:49.6]} 22... Kd6 {[%clk 0:02:21.5]} 23. Ke2 {[%clk 0:02:45.7]} 23...
h6 {[%clk 0:02:18.6]} 24. Kf3 {[%clk 0:02:46]} 24... Ra7 {[%clk 0:02:15.7]} 25.
h3 {[%clk 0:02:45.4]} 25... Ra8 {[%clk 0:02:15.8]} 26. g4 {[%clk 0:02:45.7]}
26... Ra7 {[%clk 0:02:16]} 27. Kg3 {[%clk 0:02:46.2]} 27... Ra8 {[%clk
0:02:16.3]} 28. Kh4 {[%clk 0:02:46.7]} 28... Rbb8 {[%clk 0:01:56]} 29. Rxc6+
{[%clk 0:02:39.3]} 29... Bxc6 {[%clk 0:01:54.9]} 30. Rxc6+ {[%clk 0:02:40.2]}
30... Ke7 {[%clk 0:01:54.6]} 31. Kh5 {[%clk 0:02:29.4]} 31... Rc8 {[%clk
0:01:52.7]} 32. Nf5+ {[%clk 0:02:28.4]} 32... Ke8 {[%clk 0:01:52.9]} 33. Rxc8+
{[%clk 0:02:27]} 1-0

[Event "*** Titled Tuesday Blitz"]
[Site "Chess.com"]
[Date "2020.11.10"]
[Round "8"]
[White "Malysch"]
[Black "arminmusovic"]
[Result "0-1"]
[WhiteElo "2409"]
[BlackElo "2556"]
[TimeControl "180+1"]
[EndTime "11:29:36 PST"]
[Termination "arminmusovic won by resignation"]

1. e4 {[%clk 0:03:00.9]} 1... c6 {[%clk 0:02:57.1]} 2. d4 {[%clk 0:03:00.2]}
2... d5 {[%clk 0:02:58]} 3. exd5 {[%clk 0:03:00.1]} 3... cxd5 {[%clk 0:02:58.9]}
4. Bd3 {[%clk 0:03:00.4]} 4... Nc6 {[%clk 0:02:58.6]} 5. c3 {[%clk 0:02:59.5]}
5... Nf6 {[%clk 0:02:59.5]} 6. Bf4 {[%clk 0:02:58.6]} 6... g6 {[%clk 0:03:00.2]}
7. Nf3 {[%clk 0:02:55.4]} 7... Bg7 {[%clk 0:03:00.6]} 8. O-O {[%clk 0:02:55.1]}
8... O-O {[%clk 0:03:01.1]} 9. h3 {[%clk 0:02:49.8]} 9... Re8 {[%clk 0:03:00.7]}
10. Re1 {[%clk 0:02:48.7]} 10... Nd7 {[%clk 0:02:59.8]} 11. c4 {[%clk
0:02:41.2]} 11... Nb6 {[%clk 0:02:55.1]} 12. c5 {[%clk 0:02:23.5]} 12... Nd7
{[%clk 0:02:53.2]} 13. Nc3 {[%clk 0:02:22.8]} 13... e6 {[%clk 0:02:41.5]} 14.
Nb5 {[%clk 0:02:05.1]} 14... e5 {[%clk 0:02:37.2]} 15. dxe5 {[%clk 0:02:01.6]}
15... Ndxe5 {[%clk 0:02:33.7]} 16. Nxe5 {[%clk 0:01:54.7]} 16... Nxe5 {[%clk
0:02:25.7]} 17. Bxe5 {[%clk 0:01:19.3]} 17... Rxe5 {[%clk 0:02:23.1]} 18. Re4
{[%clk 0:01:09.3]} 18... dxe4 {[%clk 0:02:19.9]} 0-1

[Event "*** Titled Tuesday Blitz"]
[Site "Chess.com"]
[Date "2020.11.10"]
[Round "8"]
[White "mjray79"]
[Black "xLuring1"]
[Result "0-1"]
[WhiteElo "2484"]
[BlackElo "2386"]
[TimeControl "180+1"]
[EndTime "11:29:50 PST"]
[Termination "xLuring1 won by resignation"]

1. d4 {[%clk 0:03:00.9]} 1... f5 {[%clk 0:02:59.6]} 2. Nc3 {[%clk 0:03:00.3]}
2... d5 {[%clk 0:02:58.8]} 3. Bg5 {[%clk 0:02:59.8]} 3... Nf6 {[%clk 0:02:57.5]}
4. Nf3 {[%clk 0:02:59.9]} 4... e6 {[%clk 0:02:52.9]} 5. e3 {[%clk 0:02:56.8]}
5... Be7 {[%clk 0:02:53.1]} 6. Be2 {[%clk 0:02:55.9]} 6... O-O {[%clk
0:02:53.6]} 7. h3 {[%clk 0:02:47.7]} 7... c5 {[%clk 0:02:52.8]} 8. O-O {[%clk
0:02:44.7]} 8... Nc6 {[%clk 0:02:52.2]} 9. Bf4 {[%clk 0:02:42.9]} 9... Ne4
{[%clk 0:02:48.6]} 10. Nb1 {[%clk 0:02:35.9]} 10... b6 {[%clk 0:02:31.9]} 11. c4
{[%clk 0:02:35.3]} 11... Bb7 {[%clk 0:02:31.2]} 12. Nfd2 {[%clk 0:02:30.6]}
12... cxd4 {[%clk 0:02:29.6]} 13. exd4 {[%clk 0:02:18.6]} 13... Nxd4 {[%clk
0:02:28.6]} 14. Bd3 {[%clk 0:02:18.3]} 14... Nf6 {[%clk 0:02:13]} 15. Nc3 {[%clk
0:02:13.4]} 15... Rc8 {[%clk 0:02:10.7]} 16. cxd5 {[%clk 0:02:04.3]} 16... Nxd5
{[%clk 0:02:08.7]} 17. Nxd5 {[%clk 0:01:58.6]} 17... Qxd5 {[%clk 0:02:08.7]} 18.
f3 {[%clk 0:01:59.1]} 18... Rfd8 {[%clk 0:01:59]} 19. Re1 {[%clk 0:01:58.2]}
19... Kh8 {[%clk 0:01:54]} 20. Re5 {[%clk 0:01:51.7]} 20... Qd7 {[%clk
0:01:49.1]} 21. Bc4 {[%clk 0:01:48.4]} 21... Bd6 {[%clk 0:01:40.1]} 22. Bb5
{[%clk 0:01:45.4]} 22... Nxb5 {[%clk 0:01:37.5]} 0-1

[Event "*** Titled Tuesday Blitz"]
[Site "Chess.com"]
[Date "2020.11.10"]
[Round "8"]
[White "anon481216"]
[Black "elohunter1999"]
[Result "0-1"]
[WhiteElo "2401"]
[BlackElo "2545"]
[TimeControl "180+1"]
[EndTime "11:30:02 PST"]
[Termination "elohunter1999 won by resignation"]

1. d4 {[%clk 0:03:00.9]} 1... d5 {[%clk 0:02:59.9]} 2. c4 {[%clk 0:03:01.3]}
2... c6 {[%clk 0:03:00.3]} 3. Nc3 {[%clk 0:03:01.7]} 3... Nf6 {[%clk 0:03:00.2]}
4. e3 {[%clk 0:03:02.2]} 4... Bf5 {[%clk 0:03:00.1]} 5. cxd5 {[%clk 0:03:01.1]}
5... cxd5 {[%clk 0:03:00.3]} 6. Qb3 {[%clk 0:03:00.4]} 6... Nc6 {[%clk
0:03:00.7]} 7. Qxb7 {[%clk 0:02:52.6]} 7... Bd7 {[%clk 0:03:00.5]} 8. Qb3 {[%clk
0:02:52.5]} 8... Rb8 {[%clk 0:03:00.9]} 9. Qd1 {[%clk 0:02:52.5]} 9... e5 {[%clk
0:03:01.6]} 10. dxe5 {[%clk 0:02:51.2]} 10... Nxe5 {[%clk 0:03:02.5]} 11. Be2
{[%clk 0:02:47.6]} 11... Bd6 {[%clk 0:03:01.9]} 12. Nf3 {[%clk 0:02:45]} 12...
O-O {[%clk 0:03:01.8]} 13. O-O {[%clk 0:02:41]} 13... Qc7 {[%clk 0:03:01.7]} 14.
Nd4 {[%clk 0:02:36.3]} 14... Nc4 {[%clk 0:02:25.5]} 15. b3 {[%clk 0:02:29.9]}
15... Nxe3 {[%clk 0:02:19.4]} 16. Bxe3 {[%clk 0:02:28.6]} 16... Qxc3 {[%clk
0:02:19.6]} 17. Rc1 {[%clk 0:02:27.6]} 17... Qa5 {[%clk 0:02:17.6]} 18. Qd2
{[%clk 0:02:23.5]} 18... Qd8 {[%clk 0:02:10.4]} 19. Bg5 {[%clk 0:02:05.8]} 19...
h6 {[%clk 0:02:06.4]} 20. Bxf6 {[%clk 0:02:04.5]} 20... Qxf6 {[%clk 0:02:06.2]}
21. g3 {[%clk 0:01:59.4]} 21... Bh3 {[%clk 0:02:02.6]} 22. Rfd1 {[%clk
0:01:58.8]} 22... Rfc8 {[%clk 0:01:59.9]} 23. Bf3 {[%clk 0:01:56.8]} 23... Ba3
{[%clk 0:01:53.2]} 24. Rxc8+ {[%clk 0:01:55.8]} 24... Rxc8 {[%clk 0:01:54.1]}
25. Nc2 {[%clk 0:01:26.3]} 25... Qxf3 {[%clk 0:01:51.7]} 0-1